[Event "Late-Titled-Tuesday-Blitz-July-09-2024"]
[Site "Chess.com"]
[Date "2024.07.09"]
[Round "10"]
[White "malakismayil"]
[Black "CarlosjPineror"]
[Result "0-1"]
[WhiteElo "2532"]
[BlackElo "2670"]
[TimeControl "180+1"]
[EndTime "15:53:20 PDT"]
[Termination "CarlosjPineror won by checkmate"]

1. e4 {[%clk 0:03:00.9]} 1... c5 {[%clk 0:03:00.2]} 2. Nf3 {[%clk 0:03:00.9]}
2... e6 {[%clk 0:03:00.5]} 3. c3 {[%clk 0:02:59.9]} 3... Nf6 {[%clk 0:03:00.3]}
4. e5 {[%clk 0:02:59.6]} 4... Nd5 {[%clk 0:03:00.9]} 5. g3 {[%clk 0:03:00.5]}
5... Nc6 {[%clk 0:03:00.3]} 6. Bg2 {[%clk 0:03:00.5]} 6... f5 {[%clk 0:02:59.8]}
7. exf6 {[%clk 0:02:44.8]} 7... Nxf6 {[%clk 0:02:59.7]} 8. d4 {[%clk 0:02:44]}
8... cxd4 {[%clk 0:02:53.4]} 9. cxd4 {[%clk 0:02:44.9]} 9... Be7 {[%clk
0:02:53.7]} 10. Nc3 {[%clk 0:02:43]} 10... Nb4 {[%clk 0:02:47.2]} 11. O-O {[%clk
0:02:40.9]} 11... O-O {[%clk 0:02:46]} 12. Bg5 {[%clk 0:02:36]} 12... h6 {[%clk
0:02:42.7]} 13. Bxf6 {[%clk 0:02:32.4]} 13... Bxf6 {[%clk 0:02:43.6]} 14. a3
{[%clk 0:02:32.5]} 14... Nc6 {[%clk 0:02:36.6]} 15. d5 {[%clk 0:02:32.3]} 15...
Ne7 {[%clk 0:02:18.4]} 16. Re1 {[%clk 0:02:11.5]} 16... Bxc3 {[%clk 0:02:13.7]}
17. bxc3 {[%clk 0:02:12.4]} 17... Nxd5 {[%clk 0:02:11]} 18. c4 {[%clk
0:02:12.8]} 18... Ne7 {[%clk 0:02:08.4]} 19. Rb1 {[%clk 0:01:58.7]} 19... Qc7
{[%clk 0:02:05.5]} 20. Qd3 {[%clk 0:01:49.8]} 20... Rb8 {[%clk 0:02:02.9]} 21.
Ne5 {[%clk 0:01:46.8]} 21... d6 {[%clk 0:02:00.8]} 22. Nf3 {[%clk 0:01:28]}
22... e5 {[%clk 0:02:00.1]} 23. Rbd1 {[%clk 0:01:24.3]} 23... Rf6 {[%clk
0:01:59.3]} 24. Nd2 {[%clk 0:01:00]} 24... Bf5 {[%clk 0:01:59.1]} 25. Ne4 {[%clk
0:01:00]} 25... Bxe4 {[%clk 0:01:50.1]} 26. Bxe4 {[%clk 0:01:00.9]} 26... Rbf8
{[%clk 0:01:48.9]} 27. f3 {[%clk 0:00:50.5]} 27... Kh8 {[%clk 0:01:46.4]} 28.
Rb1 {[%clk 0:00:43.6]} 28... b6 {[%clk 0:01:45]} 29. Red1 {[%clk 0:00:36.8]}
29... Nc6 {[%clk 0:01:35.3]} 30. Kg2 {[%clk 0:00:36.6]} 30... Nd4 {[%clk
0:01:35.2]} 31. Rf1 {[%clk 0:00:36.8]} 31... Qc5 {[%clk 0:01:29.9]} 32. Bd5
{[%clk 0:00:27.4]} 32... Nf5 {[%clk 0:01:27.1]} 33. Rbe1 {[%clk 0:00:25.1]}
33... Qd4 {[%clk 0:01:26.9]} 34. Qe2 {[%clk 0:00:21.6]} 34... Ne7 {[%clk
0:01:21.3]} 35. Rd1 {[%clk 0:00:20.4]} 35... Qc5 {[%clk 0:01:21.6]} 36. Be4
{[%clk 0:00:20.4]} 36... Qxa3 {[%clk 0:01:21.7]} 37. Ra1 {[%clk 0:00:18.7]}
37... Qc5 {[%clk 0:01:22.2]} 38. Rxa7 {[%clk 0:00:18.9]} 38... Nf5 {[%clk
0:01:22.9]} 39. Kh1 {[%clk 0:00:10.5]} 39... Nd4 {[%clk 0:01:22.3]} 40. Qd3
{[%clk 0:00:10.7]} 40... Rc8 {[%clk 0:01:20.2]} 41. Bd5 {[%clk 0:00:07.7]} 41...
b5 {[%clk 0:01:16]} 42. cxb5 {[%clk 0:00:04.6]} 42... Qxd5 {[%clk 0:01:15.5]}
43. b6 {[%clk 0:00:04]} 43... Rb8 {[%clk 0:01:09.9]} 44. Rb1 {[%clk 0:00:03.3]}
44... Rxf3 {[%clk 0:01:08.8]} 45. Qg6 {[%clk 0:00:02.9]} 45... Rf1# {[%clk
0:01:08.3]} 0-1

[Event "Late-Titled-Tuesday-Blitz-July-09-2024"]
[Site "Chess.com"]
[Date "2024.07.09"]
[Round "10"]
[White "schondeln"]
[Black "gamboajp"]
[Result "1/2-1/2"]
[WhiteElo "2339"]
[BlackElo "2185"]
[TimeControl "180+1"]
[EndTime "15:53:23 PDT"]
[Termination "Game drawn by repetition"]

1. e4 {[%clk 0:03:00.9]} 1... e6 {[%clk 0:03:00.3]} 2. d4 {[%clk 0:03:00.7]}
2... d5 {[%clk 0:03:00.9]} 3. exd5 {[%clk 0:03:01.2]} 3... exd5 {[%clk
0:03:01.6]} 4. Nf3 {[%clk 0:03:01.6]} 4... Bd6 {[%clk 0:03:02]} 5. c4 {[%clk
0:03:01.3]} 5... Nf6 {[%clk 0:03:01.7]} 6. Nc3 {[%clk 0:03:01.1]} 6... O-O
{[%clk 0:03:01.1]} 7. cxd5 {[%clk 0:03:01.1]} 7... Re8+ {[%clk 0:03:00.7]} 8.
Be2 {[%clk 0:03:00.8]} 8... Bb4 {[%clk 0:03:00.2]} 9. Bg5 {[%clk 0:02:54.9]}
9... c6 {[%clk 0:02:50.1]} 10. O-O {[%clk 0:02:50.4]} 10... cxd5 {[%clk
0:02:40.8]} 11. Bxf6 {[%clk 0:02:47.8]} 11... Qxf6 {[%clk 0:02:34.9]} 12. Nxd5
{[%clk 0:02:46.2]} 12... Qd6 {[%clk 0:02:30.5]} 13. Nxb4 {[%clk 0:02:26.2]}
13... Qxb4 {[%clk 0:02:30]} 14. Ne5 {[%clk 0:02:00.2]} 14... Nc6 {[%clk
0:01:54.3]} 15. Nxc6 {[%clk 0:01:51.9]} 15... bxc6 {[%clk 0:01:52.6]} 16. Bf3
{[%clk 0:01:52.3]} 16... Ba6 {[%clk 0:01:45.2]} 17. Re1 {[%clk 0:01:35.3]} 17...
Rxe1+ {[%clk 0:01:44.2]} 18. Qxe1 {[%clk 0:01:35.2]} 18... Qxd4 {[%clk
0:01:43.2]} 19. Bxc6 {[%clk 0:01:31.3]} 19... Rc8 {[%clk 0:01:32.3]} 20. b3
{[%clk 0:01:05.7]} 20... g6 {[%clk 0:01:01]} 21. Rd1 {[%clk 0:00:49]} 21... Qf6
{[%clk 0:00:58.5]} 22. Be4 {[%clk 0:00:37.6]} 22... Re8 {[%clk 0:00:53.5]} 23.
f3 {[%clk 0:00:33]} 23... Bb7 {[%clk 0:00:48.1]} 24. Qf2 {[%clk 0:00:14.2]}
24... Bxe4 {[%clk 0:00:47.3]} 25. fxe4 {[%clk 0:00:14.3]} 25... Qxf2+ {[%clk
0:00:48]} 26. Kxf2 {[%clk 0:00:14.3]} 26... Rxe4 {[%clk 0:00:48.7]} 27. Rd7
{[%clk 0:00:14]} 27... a5 {[%clk 0:00:48.3]} 28. Ra7 {[%clk 0:00:13]} 28... Re5
{[%clk 0:00:47.6]} 29. Kf3 {[%clk 0:00:12.9]} 29... Kg7 {[%clk 0:00:47]} 30. g4
{[%clk 0:00:11.9]} 30... h5 {[%clk 0:00:46.8]} 31. h3 {[%clk 0:00:11.6]} 31...
hxg4+ {[%clk 0:00:47.2]} 32. hxg4 {[%clk 0:00:12.5]} 32... Rb5 {[%clk
0:00:46.9]} 33. Kf4 {[%clk 0:00:10.7]} 33... g5+ {[%clk 0:00:46.7]} 34. Kf3
{[%clk 0:00:10.3]} 34... Kg6 {[%clk 0:00:46.9]} 35. Ra6+ {[%clk 0:00:09.7]}
35... f6 {[%clk 0:00:47.3]} 36. Kg3 {[%clk 0:00:08.4]} 36... Rc5 {[%clk
0:00:47.2]} 37. Kf3 {[%clk 0:00:08.5]} 37... Rb5 {[%clk 0:00:43]} 38. Kg3 {[%clk
0:00:08.2]} 38... Rc5 {[%clk 0:00:43.2]} 39. Kf3 {[%clk 0:00:08.5]} 39... Rb5
{[%clk 0:00:41.4]} 1/2-1/2

[Event "Late-Titled-Tuesday-Blitz-July-09-2024"]
[Site "Chess.com"]
[Date "2024.07.09"]
[Round "10"]
[White "talaicito"]
[Black "Veleamater"]
[Result "1-0"]
[WhiteElo "2338"]
[BlackElo "2427"]
[TimeControl "180+1"]
[EndTime "15:53:29 PDT"]
[Termination "talaicito won by checkmate"]

1. d4 {[%clk 0:03:00.9]} 1... d6 {[%clk 0:03:00.9]} 2. e4 {[%clk 0:03:00.3]}
2... g6 {[%clk 0:03:01.2]} 3. Nc3 {[%clk 0:02:52.2]} 3... Bg7 {[%clk 0:03:01.4]}
4. Be3 {[%clk 0:02:52.5]} 4... Nf6 {[%clk 0:03:01.8]} 5. Be2 {[%clk 0:02:51.3]}
5... Nc6 {[%clk 0:03:02.1]} 6. Qd2 {[%clk 0:02:42.3]} 6... h5 {[%clk 0:03:01.2]}
7. f3 {[%clk 0:02:41.1]} 7... O-O {[%clk 0:03:00.2]} 8. O-O-O {[%clk 0:02:39.5]}
8... e5 {[%clk 0:02:59.6]} 9. d5 {[%clk 0:02:35.9]} 9... Nd4 {[%clk 0:02:54.9]}
10. h4 {[%clk 0:02:26.8]} 10... a6 {[%clk 0:02:48.6]} 11. Nh3 {[%clk 0:02:25.1]}
11... b5 {[%clk 0:02:42.5]} 12. Bxd4 {[%clk 0:02:24.2]} 12... exd4 {[%clk
0:02:40.7]} 13. Qxd4 {[%clk 0:02:24.7]} 13... Bb7 {[%clk 0:02:40.2]} 14. Qd2
{[%clk 0:02:20.5]} 14... Qd7 {[%clk 0:02:38.6]} 15. Bd3 {[%clk 0:02:15.3]} 15...
b4 {[%clk 0:02:37]} 16. Ne2 {[%clk 0:02:14.9]} 16... a5 {[%clk 0:02:37.3]} 17.
Nd4 {[%clk 0:02:07.1]} 17... Qa4 {[%clk 0:02:36.4]} 18. Kb1 {[%clk 0:02:02.8]}
18... Ba6 {[%clk 0:02:30.7]} 19. Bxa6 {[%clk 0:01:58.4]} 19... Rxa6 {[%clk
0:02:29.5]} 20. Qd3 {[%clk 0:01:53.9]} 20... Rb6 {[%clk 0:02:26.6]} 21. Nc6
{[%clk 0:01:43.7]} 21... Nd7 {[%clk 0:02:20.6]} 22. Ng5 {[%clk 0:01:33.9]} 22...
Nc5 {[%clk 0:02:19]} 23. Qc4 {[%clk 0:01:28.7]} 23... b3 {[%clk 0:02:12.7]} 24.
Qxa4 {[%clk 0:01:27]} 24... Nxa4 {[%clk 0:02:12.5]} 25. axb3 {[%clk 0:01:03.1]}
25... Nxb2 {[%clk 0:02:03.4]} 26. Rde1 {[%clk 0:00:58.1]} 26... a4 {[%clk
0:02:03.4]} 27. e5 {[%clk 0:00:46.6]} 27... Nc4 {[%clk 0:02:02.6]} 28. Re4
{[%clk 0:00:36.5]} 28... Nd2+ {[%clk 0:02:01.7]} 29. Ka2 {[%clk 0:00:33.4]}
29... axb3+ {[%clk 0:02:01]} 30. cxb3 {[%clk 0:00:31.8]} 30... Ra8+ {[%clk
0:01:51.4]} 31. Ra4 {[%clk 0:00:30.8]} 31... Rxa4+ {[%clk 0:01:45.7]} 32. bxa4
{[%clk 0:00:31.7]} 32... dxe5 {[%clk 0:01:45.6]} 33. Ne4 {[%clk 0:00:25.7]}
33... Ra6 {[%clk 0:01:25.4]} 34. Nxd2 {[%clk 0:00:23.6]} 34... Rxa4+ {[%clk
0:01:24.5]} 35. Kb3 {[%clk 0:00:23.9]} 35... Ra6 {[%clk 0:01:16.4]} 36. Nc4
{[%clk 0:00:21.2]} 36... f6 {[%clk 0:01:11.1]} 37. Rb1 {[%clk 0:00:20.4]} 37...
Bf8 {[%clk 0:01:11]} 38. Kc3 {[%clk 0:00:20.1]} 38... Ra2 {[%clk 0:01:10.4]} 39.
Rb2 {[%clk 0:00:20.5]} 39... Ra1 {[%clk 0:01:10.3]} 40. Rb7 {[%clk 0:00:20]}
40... Rc1+ {[%clk 0:01:06.8]} 41. Kd3 {[%clk 0:00:20.1]} 41... Rg1 {[%clk
0:01:00.7]} 42. Rxc7 {[%clk 0:00:18.9]} 42... Rxg2 {[%clk 0:01:01.1]} 43. d6
{[%clk 0:00:18.8]} 43... Bxd6 {[%clk 0:00:51.5]} 44. Nxd6 {[%clk 0:00:19.7]}
44... g5 {[%clk 0:00:49.2]} 45. Ne4 {[%clk 0:00:19.7]} 45... gxh4 {[%clk
0:00:45.3]} 46. Nxf6+ {[%clk 0:00:19.8]} 46... Kf8 {[%clk 0:00:45.5]} 47. Nxe5
{[%clk 0:00:20.2]} 47... h3 {[%clk 0:00:41.2]} 48. Rf7# {[%clk 0:00:19.5]} 1-0

[Event "Late-Titled-Tuesday-Blitz-July-09-2024"]
[Site "Chess.com"]
[Date "2024.07.09"]
[Round "10"]
[White "Chessmatus"]
[Black "GMRafpig"]
[Result "0-1"]
[WhiteElo "2533"]
[BlackElo "2779"]
[TimeControl "180+1"]
[EndTime "15:53:36 PDT"]
[Termination "GMRafpig won on time"]

1. e4 {[%clk 0:03:00.9]} 1... c5 {[%clk 0:02:57.6]} 2. Nf3 {[%clk 0:03:00.8]}
2... d6 {[%clk 0:02:57.7]} 3. d4 {[%clk 0:03:01.1]} 3... cxd4 {[%clk 0:02:58.1]}
4. Nxd4 {[%clk 0:03:01.9]} 4... Nf6 {[%clk 0:02:58.6]} 5. Nc3 {[%clk 0:03:02.6]}
5... a6 {[%clk 0:02:59.3]} 6. g3 {[%clk 0:03:03.2]} 6... e5 {[%clk 0:02:58.8]}
7. Nde2 {[%clk 0:03:03.8]} 7... Be7 {[%clk 0:02:59.6]} 8. Bg2 {[%clk 0:03:04.3]}
8... O-O {[%clk 0:02:58.1]} 9. O-O {[%clk 0:03:04.7]} 9... b5 {[%clk 0:02:57.2]}
10. Nd5 {[%clk 0:03:04.8]} 10... Nbd7 {[%clk 0:02:53.6]} 11. Nec3 {[%clk
0:03:05.2]} 11... Bb7 {[%clk 0:02:53.6]} 12. Be3 {[%clk 0:03:04.4]} 12... Nxd5
{[%clk 0:02:50.6]} 13. Nxd5 {[%clk 0:03:04.1]} 13... Nf6 {[%clk 0:02:50.5]} 14.
a4 {[%clk 0:02:55.9]} 14... Bxd5 {[%clk 0:02:35.7]} 15. exd5 {[%clk 0:02:54.6]}
15... Qd7 {[%clk 0:02:27.7]} 16. Qd3 {[%clk 0:02:52.8]} 16... bxa4 {[%clk
0:02:23.2]} 17. Ra2 {[%clk 0:02:42.5]} 17... Qb5 {[%clk 0:02:21]} 18. Qd2 {[%clk
0:02:33.4]} 18... Rfc8 {[%clk 0:02:00.8]} 19. Rfa1 {[%clk 0:02:31.7]} 19... Rab8
{[%clk 0:01:57.8]} 20. c3 {[%clk 0:01:55.3]} 20... h6 {[%clk 0:01:48.7]} 21. Qd1
{[%clk 0:01:51.4]} 21... Bd8 {[%clk 0:01:34.5]} 22. Bc1 {[%clk 0:01:19.4]} 22...
Bb6 {[%clk 0:01:00.7]} 23. Rxa4 {[%clk 0:01:18.6]} 23... a5 {[%clk 0:00:59.9]}
24. Rh4 {[%clk 0:00:46.4]} 24... Bc5 {[%clk 0:00:38.8]} 25. Raa4 {[%clk
0:00:41.4]} 25... Qb6 {[%clk 0:00:36.6]} 26. Qe2 {[%clk 0:00:37.5]} 26... Re8
{[%clk 0:00:33.7]} 27. g4 {[%clk 0:00:12.2]} 27... e4 {[%clk 0:00:33.8]} 28. g5
{[%clk 0:00:12]} 28... hxg5 {[%clk 0:00:33.1]} 29. Bxg5 {[%clk 0:00:12]} 29...
Qxb2 {[%clk 0:00:33.4]} 30. Qxb2 {[%clk 0:00:03.2]} 30... Rxb2 {[%clk 0:00:33]}
31. Be3 {[%clk 0:00:01.8]} 31... Bxe3 {[%clk 0:00:31.5]} 32. fxe3 {[%clk
0:00:02.7]} 32... Reb8 {[%clk 0:00:30.3]} 33. Bxe4 {[%clk 0:00:02.1]} 33... Re2
{[%clk 0:00:29.6]} 0-1

[Event "Late-Titled-Tuesday-Blitz-July-09-2024"]
[Site "Chess.com"]
[Date "2024.07.09"]
[Round "10"]
[White "Kirill_Klukin"]
[Black "KaydenTroffChess"]
[Result "1-0"]
[WhiteElo "2922"]
[BlackElo "2871"]
[TimeControl "180+1"]
[EndTime "15:53:44 PDT"]
[Termination "Kirill_Klukin won on time"]

1. d4 {[%clk 0:03:00.9]} 1... Nf6 {[%clk 0:02:58]} 2. Nf3 {[%clk 0:03:01.2]}
2... g6 {[%clk 0:02:57.9]} 3. e3 {[%clk 0:03:01.6]} 3... Bg7 {[%clk 0:02:57.7]}
4. Be2 {[%clk 0:03:02.5]} 4... O-O {[%clk 0:02:57.3]} 5. O-O {[%clk 0:03:03.4]}
5... d5 {[%clk 0:02:56.5]} 6. b4 {[%clk 0:03:03.7]} 6... a5 {[%clk 0:02:56.3]}
7. b5 {[%clk 0:03:04.1]} 7... c5 {[%clk 0:02:56.7]} 8. bxc6 {[%clk 0:03:04.1]}
8... bxc6 {[%clk 0:02:57.1]} 9. Bb2 {[%clk 0:03:04.7]} 9... Ne4 {[%clk
0:02:56.4]} 10. Nbd2 {[%clk 0:03:05]} 10... c5 {[%clk 0:02:54.8]} 11. c4 {[%clk
0:02:55.2]} 11... cxd4 {[%clk 0:02:49.9]} 12. Nxd4 {[%clk 0:02:38.5]} 12... Nxd2
{[%clk 0:02:46]} 13. Qxd2 {[%clk 0:02:38.5]} 13... dxc4 {[%clk 0:02:46.4]} 14.
Bxc4 {[%clk 0:02:36.5]} 14... Ba6 {[%clk 0:02:46.1]} 15. Bxa6 {[%clk 0:02:35.1]}
15... Nxa6 {[%clk 0:02:46.1]} 16. Rfd1 {[%clk 0:02:35.7]} 16... Nc5 {[%clk
0:02:43.2]} 17. Rac1 {[%clk 0:02:32.8]} 17... Ne4 {[%clk 0:02:39.1]} 18. Qe2
{[%clk 0:02:32.9]} 18... Qb6 {[%clk 0:02:35.9]} 19. Ba3 {[%clk 0:02:29.7]} 19...
Rfc8 {[%clk 0:02:23.1]} 20. Qf3 {[%clk 0:02:18]} 20... Nd6 {[%clk 0:01:32.3]}
21. Nc6 {[%clk 0:02:14.1]} 21... Bf8 {[%clk 0:01:31.3]} 22. Bxd6 {[%clk
0:02:11.1]} 22... exd6 {[%clk 0:01:30.3]} 23. Qd5 {[%clk 0:02:01.7]} 23... a4
{[%clk 0:01:25.1]} 24. h4 {[%clk 0:01:56.7]} 24... h5 {[%clk 0:01:24.5]} 25. g3
{[%clk 0:01:57.1]} 25... Re8 {[%clk 0:01:19.5]} 26. Rb1 {[%clk 0:01:54.9]} 26...
Qc5 {[%clk 0:01:19]} 27. Qf3 {[%clk 0:01:41.5]} 27... Bg7 {[%clk 0:01:04.9]} 28.
Rb7 {[%clk 0:01:39.8]} 28... Rf8 {[%clk 0:01:05.1]} 29. Ne7+ {[%clk 0:01:32]}
29... Kh7 {[%clk 0:01:02.6]} 30. Rd5 {[%clk 0:01:31.7]} 30... Qc2 {[%clk
0:00:35.9]} 31. Rxh5+ {[%clk 0:00:47.1]} 31... Bh6 {[%clk 0:00:19.9]} 32. Nf5
{[%clk 0:00:42.8]} 32... Kg8 {[%clk 0:00:04]} 33. Nxh6+ {[%clk 0:00:42.4]} 33...
Kg7 {[%clk 0:00:04.3]} 34. Nf5+ {[%clk 0:00:42.3]} 34... Kg8 {[%clk 0:00:02]}
35. Ne7+ {[%clk 0:00:20.3]} 35... Kg7 {[%clk 0:00:01.4]} 36. Nxg6 {[%clk
0:00:21]} 1-0

[Event "Late-Titled-Tuesday-Blitz-July-09-2024"]
[Site "Chess.com"]
[Date "2024.07.09"]
[Round "10"]
[White "brm72"]
[Black "GilbertoHernandezAmura"]
[Result "0-1"]
[WhiteElo "2639"]
[BlackElo "2533"]
[TimeControl "180+1"]
[EndTime "15:53:46 PDT"]
[Termination "GilbertoHernandezAmura won by checkmate"]

1. e4 {[%clk 0:03:00.9]} 1... e5 {[%clk 0:02:56.4]} 2. Nf3 {[%clk 0:03:00.7]}
2... Nc6 {[%clk 0:02:52.8]} 3. d4 {[%clk 0:03:00.7]} 3... exd4 {[%clk
0:02:52.5]} 4. Nxd4 {[%clk 0:03:01.6]} 4... Nf6 {[%clk 0:02:52.9]} 5. Nc3 {[%clk
0:03:01.3]} 5... Bb4 {[%clk 0:02:52.4]} 6. Nxc6 {[%clk 0:03:01.7]} 6... bxc6
{[%clk 0:02:53.3]} 7. Bd3 {[%clk 0:03:02.1]} 7... d5 {[%clk 0:02:53]} 8. exd5
{[%clk 0:03:03]} 8... cxd5 {[%clk 0:02:52.7]} 9. O-O {[%clk 0:03:02.9]} 9... O-O
{[%clk 0:02:52.9]} 10. h3 {[%clk 0:03:03]} 10... h6 {[%clk 0:02:49.3]} 11. Qf3
{[%clk 0:03:03.1]} 11... Bb7 {[%clk 0:02:44.2]} 12. Ne2 {[%clk 0:02:54.8]} 12...
c5 {[%clk 0:02:36.6]} 13. Rd1 {[%clk 0:02:54]} 13... Qe7 {[%clk 0:02:29.5]} 14.
Ng3 {[%clk 0:02:30.6]} 14... d4 {[%clk 0:02:22.1]} 15. Qf4 {[%clk 0:02:25.5]}
15... Nd5 {[%clk 0:02:13.4]} 16. Qg4 {[%clk 0:02:22]} 16... Kh8 {[%clk
0:01:14.6]} 17. Nh5 {[%clk 0:01:46.1]} 17... Rg8 {[%clk 0:01:14.9]} 18. Bd2
{[%clk 0:00:57.3]} 18... Bxd2 {[%clk 0:01:09.8]} 19. Rxd2 {[%clk 0:00:58.2]}
19... Nf6 {[%clk 0:01:06.6]} 20. Qf5 {[%clk 0:00:49.3]} 20... Be4 {[%clk
0:00:57.4]} 21. Bxe4 {[%clk 0:00:48.4]} 21... Qxe4 {[%clk 0:00:57.9]} 22. Qxc5
{[%clk 0:00:46.8]} 22... Rac8 {[%clk 0:00:53.1]} 23. Qa5 {[%clk 0:00:25.9]}
23... Rxc2 {[%clk 0:00:32.1]} 24. Ng3 {[%clk 0:00:18.9]} 24... Qc6 {[%clk
0:00:29.3]} 25. Rxd4 {[%clk 0:00:16.8]} 25... Rxb2 {[%clk 0:00:20.5]} 26. Qxa7
{[%clk 0:00:16.7]} 26... Qc2 {[%clk 0:00:18.1]} 27. Rf4 {[%clk 0:00:15]} 27...
Rf8 {[%clk 0:00:15.3]} 28. a4 {[%clk 0:00:14.7]} 28... Nd5 {[%clk 0:00:15.6]}
29. Rxf7 {[%clk 0:00:14.4]} 29... Rxf7 {[%clk 0:00:13.2]} 30. Qxf7 {[%clk
0:00:15.3]} 30... Nf6 {[%clk 0:00:14.1]} 31. Qa7 {[%clk 0:00:13.6]} 31... h5
{[%clk 0:00:12.4]} 32. Qe3 {[%clk 0:00:10.7]} 32... h4 {[%clk 0:00:11.7]} 33.
Nf1 {[%clk 0:00:10.6]} 33... Ne4 {[%clk 0:00:10.9]} 34. f3 {[%clk 0:00:10.2]}
34... Qxg2# {[%clk 0:00:10.5]} 0-1

[Event "Late-Titled-Tuesday-Blitz-July-09-2024"]
[Site "Chess.com"]
[Date "2024.07.09"]
[Round "10"]
[White "SpeedofLight0"]
[Black "alexrustemov"]
[Result "1-0"]
[WhiteElo "3120"]
[BlackElo "2874"]
[TimeControl "180+1"]
[EndTime "15:53:51 PDT"]
[Termination "SpeedofLight0 won on time"]

1. d4 {[%clk 0:03:00.2]} 1... d5 {[%clk 0:02:57.2]} 2. Nc3 {[%clk 0:03:01.1]}
2... Nf6 {[%clk 0:02:56.7]} 3. Bf4 {[%clk 0:03:01.4]} 3... a6 {[%clk 0:02:55.2]}
4. e3 {[%clk 0:03:01]} 4... c5 {[%clk 0:02:54.8]} 5. Nf3 {[%clk 0:02:58.7]} 5...
cxd4 {[%clk 0:02:53.5]} 6. exd4 {[%clk 0:02:58.7]} 6... Nc6 {[%clk 0:02:52.8]}
7. Ne5 {[%clk 0:02:59.1]} 7... e6 {[%clk 0:02:52.2]} 8. Nxc6 {[%clk 0:02:52.2]}
8... bxc6 {[%clk 0:02:52]} 9. Bd3 {[%clk 0:02:50.6]} 9... Bd6 {[%clk 0:02:52]}
10. Bxd6 {[%clk 0:02:47.2]} 10... Qxd6 {[%clk 0:02:52.9]} 11. O-O {[%clk
0:02:47.4]} 11... O-O {[%clk 0:02:52.6]} 12. Na4 {[%clk 0:02:46.2]} 12... a5
{[%clk 0:02:52.1]} 13. c4 {[%clk 0:02:31.5]} 13... Ba6 {[%clk 0:02:38.7]} 14.
Rc1 {[%clk 0:02:29.3]} 14... Rfb8 {[%clk 0:02:29.1]} 15. b3 {[%clk 0:02:24.5]}
15... Nd7 {[%clk 0:02:17.7]} 16. Qe2 {[%clk 0:02:22.1]} 16... dxc4 {[%clk
0:02:12.9]} 17. Bxc4 {[%clk 0:02:20.6]} 17... Bxc4 {[%clk 0:02:11.7]} 18. Qxc4
{[%clk 0:02:18.9]} 18... Nb6 {[%clk 0:02:09.1]} 19. Qc5 {[%clk 0:02:15.8]} 19...
Qxc5 {[%clk 0:02:07]} 20. Nxc5 {[%clk 0:02:16.7]} 20... a4 {[%clk 0:02:05.2]}
21. b4 {[%clk 0:02:00.9]} 21... a3 {[%clk 0:02:03.8]} 22. Nd3 {[%clk 0:01:43.2]}
22... Nd5 {[%clk 0:02:03.1]} 23. Rc4 {[%clk 0:01:42.5]} 23... g6 {[%clk
0:01:43.6]} 24. Rb1 {[%clk 0:01:40.6]} 24... Rb6 {[%clk 0:01:41.4]} 25. Rb3
{[%clk 0:01:39.5]} 25... Ra4 {[%clk 0:01:35.6]} 26. g3 {[%clk 0:01:34.1]} 26...
Kg7 {[%clk 0:01:35.8]} 27. h4 {[%clk 0:01:32.1]} 27... h6 {[%clk 0:01:35.5]} 28.
Kf1 {[%clk 0:01:31.5]} 28... g5 {[%clk 0:01:35.7]} 29. hxg5 {[%clk 0:01:31.4]}
29... hxg5 {[%clk 0:01:36.6]} 30. Ke2 {[%clk 0:01:32.1]} 30... f6 {[%clk
0:01:33.7]} 31. Nc5 {[%clk 0:01:23.9]} 31... Raxb4 {[%clk 0:01:27.5]} 32. Rcxb4
{[%clk 0:01:21.4]} 32... Rxb4 {[%clk 0:01:25.8]} 33. Rxa3 {[%clk 0:01:20.8]}
33... Rb2+ {[%clk 0:01:20]} 34. Kf3 {[%clk 0:01:17]} 34... f5 {[%clk 0:00:52.9]}
35. Nxe6+ {[%clk 0:01:09.1]} 35... Kf6 {[%clk 0:00:52.9]} 36. Nd8 {[%clk
0:01:07.7]} 36... g4+ {[%clk 0:00:52.8]} 37. Kg2 {[%clk 0:01:07.9]} 37... Rc2
{[%clk 0:00:50.1]} 38. Ra6 {[%clk 0:00:58.7]} 38... Ne3+ {[%clk 0:00:48.4]} 39.
Kg1 {[%clk 0:00:58.3]} 39... Rc1+ {[%clk 0:00:30.8]} 40. Kh2 {[%clk 0:00:58.2]}
40... Nf1+ {[%clk 0:00:15.3]} 41. Kg2 {[%clk 0:00:58.4]} 41... Ke7 {[%clk
0:00:09.7]} 42. Nxc6+ {[%clk 0:00:56.3]} 42... Kd6 {[%clk 0:00:08.4]} 43. Nb4+
{[%clk 0:00:55.2]} 43... Kd7 {[%clk 0:00:07.3]} 44. Nd3 {[%clk 0:00:51.1]} 44...
Ra1 {[%clk 0:00:07.1]} 45. Ne5+ {[%clk 0:00:46]} 45... Ke7 {[%clk 0:00:06.1]}
46. d5 {[%clk 0:00:46.5]} 46... Nd2 {[%clk 0:00:05.7]} 47. d6+ {[%clk
0:00:46.7]} 47... Ke6 {[%clk 0:00:02]} 48. d7+ {[%clk 0:00:47.2]} 48... Ke7
{[%clk 0:00:02.3]} 49. Ra8 {[%clk 0:00:46.8]} 49... Nf3 {[%clk 0:00:01]} 50.
d8=Q+ {[%clk 0:00:47]} 1-0